bitfinex/quotes_ETHUSD_20250801
["timestamp","ask_amount","ask_price","bid_price","bid_amount"]
[1754037434474,0.46367794,3601.0,3600.6,0.002]
[1754037434475,0.4359,3601.0,3600.6,30.002]
[1754037434645,0.1392,3600.9,3600.6,0.002]
[1754037434846,5.146,3601.2,3600.6,0.002]
[1754037434847,0.1392,3600.7,3600.6,0.002]
[1754037435078,8.05743775,3600.7,3600.6,0.002]
[1754037435388,0.4359,3601.5,3600.6,30.002]
[1754037435695,0.1392,3601.0,3600.7,30.0]
[1754037435852,5.135,3600.9,3600.7,30.0]
[1754037436262,5.135,3600.9,3600.8,17.591]
[1754037436584,5.135,3600.9,3600.7,25.13319029]
[1754037436760,5.135,3600.9,3600.8,35.77716063]
[1754037436962,5.135,3600.9,3600.8,37.77086063]
[1754037437161,5.135,3600.9,3600.8,35.77716063]
[1754037437363,5.135,3600.9,3600.8,37.77086063]
[1754037437562,5.135,3600.9,3600.8,37.91006063]
[1754037437782,5.135,3600.9,3600.8,38.33876063]
[1754037438082,3.23466599,3602.4,3600.9,35.7770835]
[1754037438083,2.77602919,3602.3,3600.9,35.7770835]
[1754037438278,1.8689,3602.7,3600.9,35.7770835]
[1754037438279,0.1392,3601.8,3601.2,3.0]
[1754037438476,0.1392,3601.6,3601.4,3.0]
[1754037438864,5.116,3601.5,3601.4,30.0]
[1754037439078,5.116,3601.5,3601.4,33.0]
[1754037439275,0.1392,3601.6,3601.4,35.77669795]
[1754037439600,0.001,3602.2,3601.9,3.0]
[1754037439904,0.001,3602.2,3602.1,35.77615835]
[1754037440291,0.001,3602.2,3602.1,37.76985835]
[1754037440486,0.001,3602.2,3602.1,33.0]
[1754037440703,0.001,3602.2,3602.1,35.77615835]
[1754037440906,0.001,3602.2,3602.1,37.76985835]
[1754037441105,0.001,3602.2,3602.0,2.91537737]
[1754037441265,0.001,3602.2,3602.0,0.1392]
[1754037441465,0.001,3602.2,3601.1,1.9937]
[1754037441466,1.1092,3602.1,3601.5,0.1392]
[1754037441700,0.1392,3602.1,3601.5,0.1392]
[1754037441902,0.1392,3602.1,3602.0,10.0]
[1754037442103,0.1402,3602.2,3601.9,3.0]
[1754037442266,0.001,3602.2,3602.1,5.77615835]
[1754037442463,0.001,3602.2,3602.1,35.91535835]
[1754037442717,0.001,3602.2,3602.1,37.90905835]
[1754037442871,0.001,3602.2,3602.1,38.33775835]
[1754037443983,0.001,3602.2,3602.1,37.90905835]
[1754037444332,0.001,3602.2,3602.1,26.10235835]
[1754037444493,0.001,3602.2,3602.1,28.09605835]
[1754037444832,0.001,3602.2,3602.1,26.10235835]
[1754037445189,0.001,3602.2,3602.1,26.11705835]
[1754037447095,0.001,3602.2,3602.1,26.54575835]
[1754037447388,1e-08,3602.2,3602.1,31.48255835]
[1754037447893,1e-08,3602.2,3602.1,26.40655835]
[1754037448090,1e-08,3602.2,3602.1,22.97785835]
[1754037448833,1e-08,3602.2,3602.1,21.208]
[1754037449195,1e-08,3602.2,3602.1,13.585]
[1754037449394,1e-08,3602.2,3602.1,12.55815835]
[1754037449692,1e-08,3602.2,3602.1,9.55815835]
[1754037449895,1e-08,3602.2,3602.1,12.55815835]
[1754037450331,1e-08,3602.2,3602.1,14.55185835]
[1754037450722,1e-08,3602.2,3602.1,14.98055835]
[1754037451500,1e-08,3602.6,3602.1,14.98055835]
[1754037451700,6.67,3604.5,3604.4,2.77438686]
[1754037451939,0.6665,3605.5,3605.0,3.822]
[1754037452149,5.5077,3605.4,3604.9,40.0]
[1754037452309,2.77374551,3605.3,3604.8,25.225]
[1754037452512,3.2325309,3605.2,3604.9,34.717]
[1754037452731,5.5067,3605.1,3604.2,3.0]
[1754037453037,0.55,3604.7,3603.4,2.77515679]
[1754037453337,3.23293747,3604.6,3603.9,2.77476239]
[1754037453544,0.4587,3604.6,3603.9,3.0]
[1754037453847,5.048,3605.1,3604.3,3.0]
[1754037454137,2.77410137,3604.8,3604.3,3.0]
[1754037454454,0.4587,3604.7,3604.1,3.0]
[1754037454662,0.55,3604.4,3603.8,3.0]
[1754037454957,2.77464651,3604.1,3603.4,2.77510601]
[1754037455125,0.02777794,3604.2,3603.3,18.51]
[1754037455324,2.77469478,3604.0,3603.5,10.0]
[1754037455518,0.4587,3603.9,3603.5,2.77503636]
[1754037455714,4.198,3604.2,3603.8,3.0]
[1754037455919,4.198,3604.2,3603.7,40.0]
[1754037455920,4.198,3604.2,3603.7,3.0]
[1754037456235,2.77467298,3604.1,3603.8,12.17]
[1754037456440,4.6567,3604.2,3603.1,4.9937]
[1754037456441,2.77482108,3603.9,3603.1,4.9937]
[1754037456642,2.80259902,3603.9,3603.6,13.882]
[1754037456842,2.80259902,3603.9,3603.7,3.0]
[1754037456843,3.83714524,3603.8,3603.7,3.0]
[1754037457045,1.06229647,3603.8,3603.2,3.0]
[1754037457215,0.4587,3603.8,3603.3,40.0]
[1754037457421,0.4587,3603.7,3602.8,0.21321296]
[1754037457630,0.1384,3603.5,3603.1,10.0]
[1754037457830,0.1384,3603.1,3602.6,3.1384]
[1754037458052,0.1384,3603.1,3602.6,0.1384]
[1754037458053,0.5971,3603.1,3602.6,0.1384]
[1754037458241,0.5971,3603.1,3602.5,40.0]
[1754037458242,3.23422587,3603.0,3602.5,40.0]
[1754037458436,7.79056008,3602.9,3602.5,30.0]
[1754037458651,5.015,3602.9,3602.6,32.77576255]
[1754037458853,5.015,3602.9,3602.7,3.0]
[1754037459170,5.4737,3602.9,3602.5,30.0]
[1754037459372,8.24924335,3602.9,3602.5,30.0]
[1754037459686,5.015,3602.9,3602.5,34.76949574]
[1754037459834,5.015,3602.9,3602.7,3.0]
[1754037460034,5.015,3602.9,3602.8,35.77561896]
[1754037460284,7.1277,3604.1,3603.0,40.0]
[1754037460443,0.1384,3603.6,3603.2,40.0]
[1754037460646,0.1384,3603.6,3603.5,33.0]
[1754037461579,0.5971,3603.6,3603.1,0.1384]
[1754037461760,3.37215577,3603.6,3603.1,30.0]
[1754037462410,2.77521706,3603.4,3603.1,30.0]
[1754037462681,0.1384,3603.2,3603.1,33.0]
[1754037462865,0.1384,3603.2,3603.1,34.9937]
[1754037463189,5.1264,3603.2,3603.1,37.76908786]
[1754037463477,4.988,3603.2,3603.1,37.90748786]
[1754037463850,0.1384,3603.8,3603.4,2.77509459]
[1754037464063,6.669,3604.1,3603.7,40.0]
[1754037464269,6.669,3604.1,3604.0,45.77469478]
[1754037464464,11.65,3604.1,3604.0,33.0]
[1754037465279,11.65,3604.1,3604.0,37.76839478]
[1754037465280,4.982,3604.1,3604.0,37.76839478]
[1754037465455,4.982,3604.1,3604.0,37.90679478]
[1754037465650,0.001,3604.1,3604.0,37.90679478]
[1754037466191,0.001,3604.1,3604.0,38.33549478]
[1754037466367,0.001,3604.1,3604.0,3.0]
[1754037466556,0.001,3604.1,3604.0,35.91309478]
[1754037466758,0.001,3604.1,3604.0,25.65909478]
[1754037466958,0.001,3604.1,3604.0,27.58489478]
[1754037467296,0.001,3604.1,3604.0,22.8844]
[1754037467480,0.001,3604.1,3604.0,3.0]
[1754037467688,0.001,3604.1,3604.0,37.83889478]
[1754037469597,4.966,3604.6,3604.5,2.77430989]
[1754037469779,4.966,3604.6,3604.5,35.77430989]
[1754037470109,4.966,3604.6,3604.5,37.83850989]
[1754037470398,0.1384,3605.3,3604.7,2.77415596]
[1754037470565,4.955,3605.3,3604.9,40.0]
[1754037470768,4.955,3605.3,3605.2,2.77377121]
[1754037471096,4.955,3605.3,3605.2,30.0]
[1754037471309,0.1384,3605.5,3605.4,40.0]
[1754037471587,0.4668,3605.4,3605.3,3.0]
[1754037471891,4.954,3605.5,3604.9,0.1384]
[1754037472082,0.1384,3605.3,3604.4,3.0]
[1754037472282,0.02777794,3605.3,3604.4,3.1384]
[1754037472482,0.1384,3604.9,3604.8,3.0]
[1754037472668,4.944,3604.9,3604.8,37.699879]
[1754037472879,4.944,3604.9,3604.8,37.838279]
[1754037473393,0.1384,3605.6,3605.5,5.77354042]
[1754037473601,6.667,3605.8,3605.7,10.0]
[1754037473898,6.667,3605.8,3605.7,37.69918658]
[1754037473899,11.606,3605.8,3605.7,37.69918658]
[1754037474058,0.001,3605.9,3605.7,37.83758658]
[1754037474260,0.001,3605.9,3605.8,37.69910966]
[1754037475292,0.001,3605.9,3605.8,33.0]
[1754037475458,4.938,3605.9,3605.8,33.0]
[1754037475658,4.938,3605.9,3605.8,22.292]
[1754037476077,4.938,3605.9,3605.8,26.99110966]
[1754037476385,4.938,3605.9,3605.8,27.12950966]
[1754037476591,4.938,3605.9,3605.8,22.7782]
[1754037476788,4.938,3605.9,3605.8,3.0]
[1754037476953,4.938,3605.9,3605.8,10.797]
[1754037477452,4.938,3605.9,3605.8,3.0]
[1754037477655,8.17803275,3605.9,3605.8,3.0]
[1754037478296,6.04695215,3605.9,3605.8,3.0]
[1754037478505,4.938,3605.9,3605.8,3.0]
[1754037479280,4.938,3605.9,3605.8,33.0]
[1754037479458,0.001,3605.9,3605.8,33.0]
[1754037479661,4.912,3605.9,3605.8,33.0]
[1754037479854,4.912,3605.9,3605.8,3.0]
[1754037480271,4.912,3605.9,3605.8,33.0]
[1754037480595,0.001,3605.9,3605.8,37.69910966]
[1754037480896,0.001,3606.2,3606.1,2.77307894]
[1754037481207,4.198,3607.4,3607.2,3.0]
[1754037481406,4.198,3607.4,3607.3,33.0]
[1754037481909,9.1,3607.4,3607.3,10.649]
[1754037482087,4.198,3607.4,3607.3,10.649]
[1754037482412,9.097,3607.4,3607.3,10.649]
[1754037482791,0.5,3607.7,3607.4,5.77201629]
[1754037483116,0.5,3607.7,3607.6,35.91032593]
[1754037483726,1e-08,3607.7,3607.6,38.30852593]
[1754037483876,4.894,3608.8,3608.7,2.77108099]
[1754037484072,13.19309069,3611.0,3609.3,30.0]
[1754037484073,0.1384,3609.8,3609.3,30.0]
[1754037484274,4.893,3609.7,3609.4,0.1384]
[1754037484501,5.3598,3609.7,3609.4,0.1384]
[1754037484772,2.77046682,3609.5,3608.2,1.9258]
[1754037485012,0.1384,3608.9,3608.6,3.0]
[1754037485318,4.891,3608.8,3608.7,30.1384]
[1754037485546,0.1384,3609.3,3609.0,3.0]
[1754037485679,4.89,3609.1,3609.0,35.77085065]
[1754037486018,0.4668,3609.9,3609.2,33.0]
[1754037486019,4.892,3609.3,3609.2,33.0]
[1754037486213,0.6052,3609.9,3609.5,30.0]
[1754037486516,0.1384,3609.9,3609.5,3.0]
[1754037486819,0.1384,3609.9,3609.8,35.77023657]
[1754037486972,5.0264,3609.9,3609.8,33.0]
[1754037487176,4.888,3609.9,3609.8,35.77023657]
[1754037487477,4.885,3610.1,3610.0,35.77007517]
[1754037487679,6.663,3610.6,3610.3,33.0]
[1754037487878,6.663,3610.6,3610.2,2.76992377]
[1754037487879,6.663,3610.6,3610.5,33.0]
[1754037488210,0.001,3610.7,3610.6,35.76962277]
[1754037488395,0.001,3610.7,3610.6,37.83382277]
[1754037488812,0.001,3610.7,3610.6,38.30622277]
[1754037489197,2.76810116,3612.6,3611.5,2.76893257]
[1754037489386,0.001,3612.4,3611.5,35.76893257]
[1754037489583,4.878,3612.4,3611.5,38.30553257]
[1754037489821,0.001,3612.4,3611.5,38.30553257]
[1754037489987,0.001,3612.4,3612.3,35.76831935]
[1754037490393,0.001,3612.4,3612.3,37.69411935]
[1754037490713,0.001,3612.4,3612.3,37.9002056]
[1754037490925,0.001,3612.4,3612.3,33.20608625]
[1754037491223,3.55,3611.9,3607.5,2.77200277]
[1754037491383,0.55,3611.6,3608.5,1.9258]
[1754037491719,11.58977794,3611.8,3608.8,30.0]
[1754037491720,0.55,3611.7,3608.8,30.0]
[1754037491930,0.001,3612.4,3611.2,30.0]
[1754037492121,0.001,3612.4,3611.5,2.76893257]
[1754037492290,0.001,3612.4,3611.7,30.0]
[1754037492487,0.001,3612.4,3611.9,30.0]
[1754037492710,0.001,3612.4,3611.7,30.0]
[1754037492896,0.001,3612.4,3611.7,30.20623189]
[1754037493103,0.001,3612.4,3612.0,3.0]
[1754037493288,0.001,3612.4,3612.3,43.0]
[1754037493488,0.001,3612.4,3612.3,33.0]
[1754037493688,0.001,3612.4,3612.3,43.08351935]
[1754037493990,0.001,3612.4,3612.3,44.06146967]
[1754037494227,0.001,3612.4,3612.3,38.16651935]
[1754037494412,0.001,3612.4,3612.3,43.08251935]
[1754037494740,0.001,3612.4,3612.3,50.08251935]
[1754037494929,0.001,3612.4,3612.3,15.16651935]
[1754037495284,0.001,3612.4,3612.3,20.08351935]
[1754037495488,0.001,3612.4,3612.3,50.08351935]
[1754037495726,0.001,3612.4,3612.3,50.75547502]
[1754037496225,0.001,3612.4,3612.3,45.16651935]
[1754037496603,0.001,3612.4,3612.3,47.89135211]
[1754037496935,0.001,3614.4,3612.9,3.0]
[1754037497225,0.001,3614.4,3613.9,17.954]
[1754037498003,2.76709372,3613.9,3612.7,2.3567]
[1754037498204,2.76765572,3613.2,3612.0,30.0]
[1754037498414,2.767783,3613.0,3612.0,0.20423209]
[1754037498623,2.76795115,3612.8,3612.1,30.0]
[1754037498795,4.916,3613.2,3612.2,41.93158395]
[1754037499012,4.916,3613.5,3612.6,3.0]
[1754037499212,4.916,3613.5,3612.0,0.20337974]
[1754037499213,2.76802179,3612.7,3612.1,30.0]
[1754037499415,0.001,3614.1,3612.7,30.0]
[1754037499609,4.918,3613.9,3612.8,32.76793077]
[1754037499803,7.68515178,3613.9,3613.0,30.0]
[1754037500029,7.68515178,3613.9,3612.8,2.76792012]
[1754037500030,0.1384,3613.8,3613.3,0.1384]
[1754037500232,4.918,3613.9,3613.6,40.0]
[1754037500435,4.918,3613.9,3612.8,30.0]
[1754037500436,2.76717029,3613.8,3612.8,30.0]
[1754037500726,0.1384,3613.6,3613.2,40.0]
[1754037500928,0.1384,3613.6,3613.2,30.0]
[1754037501128,4.914,3613.5,3613.2,30.0]
[1754037501542,7.68140172,3613.5,3613.2,26.738]
[1754037501752,4.914,3613.5,3612.5,1.9039]
[1754037501896,4.914,3613.5,3612.1,32.76839732]
[1754037501897,2.76786646,3612.9,3612.1,32.76839732]
[1754037502102,0.1384,3613.1,3612.7,30.0]
[1754037502398,4.914,3613.5,3611.5,30.0]
[1754037502399,0.57877794,3613.0,3611.5,30.0]
[1754037502599,0.57877794,3613.0,3611.6,30.0]
[1754037502600,0.1384,3612.6,3611.6,30.0]
[1754037502828,0.02877794,3613.0,3611.6,30.0]
[1754037502829,0.1384,3612.3,3611.9,30.0]
[1754037503195,0.001,3613.5,3612.2,0.1384]
[1754037503433,0.1384,3613.0,3612.7,30.0]
[1754037503661,5.0444,3613.4,3612.9,3.1384]
[1754037503835,0.001,3613.8,3613.4,2.76747661]
[1754037504141,0.001,3613.8,3613.7,11.55564686]
[1754037504505,0.001,3614.0,3613.9,2.76709372]
[1754037504712,0.001,3614.0,3613.9,38.12379372]
[1754037504953,0.001,3614.0,3613.9,40.84862648]
[1754037505241,0.001,3614.0,3613.9,35.90549372]
[1754037505572,0.001,3614.4,3614.1,2.76688211]
[1754037505703,0.31543761,3615.7,3614.5,40.0]
[1754037505903,0.17703761,3615.7,3615.6,5.76579267]
[1754037506124,0.17703761,3615.7,3615.6,35.90419267]
[1754037506330,0.17703761,3615.7,3615.6,37.66969267]
[1754037506533,0.17703761,3615.7,3615.6,38.12249267]
[1754037506752,1e-08,3615.7,3615.6,40.84732543]
[1754037507045,0.5,3616.2,3616.1,2.76541024]
[1754037507252,0.001,3616.5,3616.4,32.76518084]
[1754037507545,1e-08,3616.5,3616.4,35.76518084]
[1754037507744,1e-08,3616.9,3616.8,32.76487502]
[1754037507912,1e-08,3616.9,3616.8,37.93391138]
[1754037508114,11.561,3618.1,3616.9,3.0]
[1754037508338,11.561,3618.1,3618.0,32.76395798]
[1754037508339,4.91,3618.1,3618.0,32.76395798]
[1754037508555,0.001,3618.7,3618.2,45.7638052]
[1754037508715,0.001,3618.7,3618.2,35.7638052]
[1754037508910,0.001,3618.7,3618.2,35.3567]
[1754037509113,0.001,3618.7,3618.2,34.9039]
[1754037509309,0.001,3618.7,3618.2,35.3567]
[1754037509734,0.001,3618.7,3618.2,33.0]
[1754037510244,0.001,3618.7,3618.2,34.9039]
[1754037510446,0.001,3618.7,3618.2,33.0]
[1754037511351,0.001,3618.7,3618.2,35.3567]
[1754037511571,0.001,3618.7,3618.2,38.1205052]
[1754037511868,0.001,3618.7,3618.2,41.04893044]
[1754037512219,0.001,3618.7,3618.6,32.76349969]
[1754037512420,0.001,3618.7,3618.6,35.76349969]
[1754037512748,0.001,3618.7,3618.6,43.01919969]
[1754037513053,0.17575472,3619.8,3619.7,32.76265988]
[1754037513224,0.17575472,3619.8,3619.7,35.76265988]
[1754037513419,0.17575472,3619.8,3619.7,38.11935988]
[1754037513651,0.06575472,3619.8,3619.7,38.11935988]
[1754037514217,0.06575472,3619.8,3619.7,33.0]
[1754037514436,0.06575472,3619.8,3618.9,0.4528]
[1754037514655,0.06575472,3619.8,3619.4,3.0]
[1754037514858,0.06575472,3619.8,3619.6,3.0]
[1754037515065,0.06575472,3619.8,3619.7,35.76265988]
[1754037515559,0.001,3620.6,3619.9,2.76250725]
[1754037515736,0.001,3620.6,3619.9,35.76250725]
[1754037515915,0.001,3620.6,3619.9,38.11920725]
[1754037516367,0.001,3620.6,3620.5,5.76204944]
[1754037516521,0.1195,3621.6,3621.5,32.76128675]
[1754037516718,0.1195,3621.6,3621.2,40.0]
[1754037517041,0.1195,3621.6,3621.1,3.0]
[1754037517042,0.1195,3621.6,3621.5,0.1384]
[1754037517263,0.1195,3621.6,3621.1,3.0]
[1754037517264,2.88072868,3621.6,3621.1,30.0]
[1754037517562,2.761363,3621.4,3621.1,0.20555076]
[1754037517744,0.55,3621.2,3619.6,40.0]
[1754037517931,0.1384,3620.3,3619.8,40.1384]
[1754037518261,0.55,3620.5,3619.6,0.21000978]
[1754037518466,0.1384,3619.8,3618.8,2.7632721]
[1754037518618,0.1384,3619.3,3618.8,30.0]
[1754037518831,2.76312497,3619.1,3618.4,0.21231188]
[1754037519035,2.76248368,3620.0,3618.6,30.0]
[1754037519269,5.0494,3619.9,3619.3,0.1384]
[1754037519488,4.911,3619.9,3619.0,30.0]
[1754037519689,4.916,3620.1,3619.0,10.0]
[1754037519838,0.1384,3620.0,3619.5,0.1384]
[1754037520039,2.76259254,3619.8,3619.5,3.0]
[1754037520272,2.76259254,3619.8,3618.4,2.10804046]
[1754037520273,0.6884,3619.6,3618.4,0.20414046]
[1754037520547,2.76255473,3619.9,3618.7,2.76336142]
[1754037520752,0.1384,3619.4,3618.9,0.1384]
[1754037520974,4.914,3619.5,3619.0,31.93153194]
[1754037521181,4.912,3619.9,3619.5,10.0]
[1754037521371,6.641,3620.7,3619.8,2.76252067]
[1754037521684,0.1384,3620.5,3619.9,22.763]
[1754037521849,4.912,3620.6,3618.5,3.0]
[1754037522173,6.641,3620.7,3619.3,30.0]
[1754037522174,4.909,3620.5,3619.3,30.0]
[1754037522337,4.909,3620.5,3619.3,1.9039]
[1754037522534,6.641,3620.7,3619.3,1.9039]
[1754037522535,0.55,3620.6,3619.7,2.76259426]
[1754037522777,6.641,3620.7,3619.7,2.76259426]
[1754037522778,4.913,3620.5,3620.2,2.76226217]
[1754037522983,6.641,3620.7,3619.4,0.4528]
[1754037523138,6.641,3620.7,3620.5,2.76204944]
[1754037523139,4.912,3620.6,3620.5,2.76204944]
[1754037523585,4.912,3620.6,3620.5,36.21484944]
[1754037523795,2.76176139,3620.9,3620.6,3.0]
[1754037523955,2.76189687,3620.7,3620.5,0.21185092]
[1754037524279,0.1384,3620.6,3619.9,0.1384]
[1754037524455,0.1384,3620.4,3619.4,2.76283485]
[1754037524650,0.1384,3620.2,3619.7,0.1384]
[1754037524849,0.02777794,3620.1,3619.4,0.20809529]
[1754037525101,0.1384,3619.7,3619.1,0.1384]
[1754037525262,0.002,3620.2,3618.9,0.1384]
[1754037525263,4.907,3619.6,3618.9,0.1384]
[1754037525586,0.1384,3619.4,3619.0,2.76318751]
[1754037525785,4.907,3619.6,3618.4,10.0]
[1754037526083,0.55,3620.1,3619.5,2.76281254]
[1754037526285,0.1384,3620.0,3619.5,0.1384]
[1754037526495,6.639,3620.2,3620.0,2.76241223]
[1754037526692,6.639,3620.2,3619.5,2.3872]
[1754037526693,4.903,3620.1,3619.7,0.1384]
[1754037526879,6.7774,3620.2,3620.1,2.76235463]
[1754037527085,11.539,3620.2,3620.1,2.76235463]
[1754037527391,11.539,3620.2,3620.0,0.1384]
[1754037527794,0.1384,3620.6,3620.5,2.76204944]
[1754037527992,4.9,3620.6,3620.5,2.76204944]
[1754037528405,0.0384,3620.8,3620.3,10.0]
[1754037528721,0.0384,3620.8,3620.7,35.76189687]
[1754037528861,4.893,3621.5,3620.7,35.76189687]
[1754037528862,0.16617794,3621.4,3620.7,2.90027303]
[1754037529054,2.92754235,3621.4,3620.7,0.1384]
[1754037529296,0.1384,3621.0,3620.5,3.1384]
[1754037529606,0.1384,3621.0,3620.4,0.1384]
[1754037529899,0.55,3620.9,3620.4,0.1384]
[1754037530194,0.1384,3620.6,3620.5,2.76204944]
[1754037530406,0.1384,3620.6,3619.6,3.0]
[1754037530407,4.889,3620.6,3620.3,2.76217621]
[1754037530556,4.889,3620.6,3619.8,3.0]
[1754037530755,4.889,3621.0,3620.1,3.0]
[1754037531113,16.7985313,3622.3,3620.1,3.0]
[1754037531114,4.89,3621.1,3620.5,5.76197396]
[1754037531400,4.89,3621.1,3621.0,2.76166804]
[1754037531604,4.89,3621.1,3621.0,5.76166804]
[1754037531900,6.639,3622.5,3621.5,2.76128675]
[1754037532062,4.885,3622.0,3621.5,2.76128675]
[1754037532576,4.884,3621.9,3621.5,2.76128675]
[1754037532989,4.35036312,3621.9,3621.8,5.76105803]
[1754037533312,4.35036312,3621.9,3621.8,3.0]
[1754037533612,6.639,3622.5,3621.3,1.9466]
[1754037533765,4.88,3622.1,3621.5,3.0]
[1754037533973,4.88,3622.1,3621.3,1.9466]
[1754037533974,4.88,3622.1,3621.7,2.26]
[1754037534170,4.88,3622.1,3621.7,12.187]
[1754037534372,4.88,3622.1,3621.5,3.0]
[1754037534568,0.1443544,3623.5,3621.9,3.0]
[1754037534784,0.1443544,3623.5,3622.1,3.0]
[1754037534973,2.7592483,3624.2,3623.4,2.75978037]
[1754037535169,4.882,3624.2,3623.5,2.3872]
[1754037535410,4.882,3624.2,3622.2,3.0]
[1754037535708,4.881,3624.0,3623.8,32.75953419]
[1754037535872,4.881,3624.0,3623.8,14.254]
[1754037536070,4.88,3624.0,3623.8,0.20639576]
[1754037536271,2.75964975,3623.7,3622.8,2.7602285]
[1754037536508,2.76008406,3623.1,3622.4,3.0]
[1754037536711,4.886,3623.0,3622.4,0.20378315]
[1754037536915,4.886,3623.0,3621.5,0.4406]
[1754037536916,2.76052449,3622.5,3621.5,0.4406]
[1754037537098,0.55,3622.9,3621.9,30.0]
[1754037537298,2.76069191,3622.3,3621.7,8.018]
[1754037537502,7.64769191,3622.3,3621.6,11.485]
[1754037537718,4.887,3622.3,3621.6,11.485]
[1754037537916,4.887,3622.3,3621.9,3.0]
[1754037538491,2.76082935,3622.1,3621.5,3.64347081]
[1754037538721,0.02777794,3622.0,3621.7,3.0]
[1754037538879,0.55,3622.2,3621.5,0.20287081]
[1754037539083,7.64767695,3622.3,3621.8,10.0]
[1754037539294,4.887,3622.3,3621.4,1.9466]
[1754037539502,2.76102974,3621.9,3621.4,3.0]
[1754037539726,0.55,3622.2,3621.6,3.0]
[1754037540018,7.63561106,3622.4,3621.8,40.0]
[1754037540314,0.55,3622.3,3621.5,0.20438447]
[1754037540511,0.55,3621.8,3620.1,30.0]
[1754037540716,0.55,3621.6,3620.7,2.76189687]
[1754037540914,0.1384,3621.1,3620.9,7.457]
[1754037541081,0.1384,3621.1,3620.7,30.0]
[1754037541082,4.873,3621.0,3620.7,30.0]
[1754037541278,4.87,3621.3,3620.8,0.0276182]
[1754037541495,4.87,3621.4,3621.1,3.0]
[1754037541697,4.871,3622.1,3621.3,3.0]
[1754037541908,4.871,3622.1,3621.5,5.76123493]
[1754037542140,4.871,3622.1,3621.9,29.326]
[1754037542325,4.871,3622.1,3620.1,10.0]
[1754037542513,0.1384,3621.4,3620.9,3.1384]
[1754037542833,4.867,3621.3,3620.9,0.1384]
[1754037543011,4.867,3621.3,3621.2,40.0]
[1754037543209,4.867,3621.3,3621.2,33.1384]
[1754037543428,4.867,3621.3,3621.2,38.28711551]
[1754037543996,4.865,3621.9,3621.4,40.0]
[1754037544239,0.1384,3622.2,3621.7,3.1384]
[1754037544439,0.4373,3623.5,3621.3,3.0]
[1754037544440,1.892,3624.1,3622.2,30.0]
[1754037544637,1.892,3624.1,3622.3,5.3872]
[1754037544638,0.02777794,3623.8,3622.3,5.3872]
[1754037544945,0.02777794,3623.8,3622.1,4.862]
[1754037544946,5.03647184,3623.9,3622.4,2.3872]
[1754037545230,4.866,3623.8,3622.8,5.760274]
[1754037545402,2.75973789,3623.6,3623.0,30.0]
[1754037545603,0.02777794,3623.5,3622.6,3.0]
[1754037545834,0.02777794,3623.5,3622.6,0.20383364]
[1754037545835,2.76036924,3622.8,3622.6,0.20383364]
[1754037546138,0.55,3622.6,3621.6,30.0]
[1754037546430,0.55,3622.6,3621.5,1.9466]
[1754037546431,4.866,3622.5,3622.1,3.0]
[1754037546632,0.57777794,3622.4,3621.6,30.0]
[1754037546834,2.442,3622.4,3621.6,30.0]
[1754037547020,4.866,3622.5,3621.8,10.0]
[1754037547333,4.866,3622.5,3621.6,30.0]
[1754037547635,2.76089405,3622.1,3621.4,3.0]
[1754037547835,2.76082935,3622.1,3621.6,3.0]
[1754037548033,3.31076849,3622.2,3621.7,30.0]
[1754037548329,2.76100502,3621.9,3621.7,30.0]
[1754037548532,4.861,3621.8,3621.7,33.0]
[1754037549133,4.861,3621.8,3621.7,3.0]
[1754037549509,4.861,3621.8,3621.7,7.70773427]
[1754037549808,4.861,3621.8,3621.7,8.14833427]
[1754037550159,4.852,3622.5,3622.1,40.0]
[1754037550337,4.852,3622.4,3622.1,3.0]
[1754037550538,4.857,3622.3,3622.2,2.76075313]
[1754037550739,4.857,3622.6,3622.5,2.76046163]
[1754037550916,6.634,3623.5,3622.6,30.0]
[1754037551118,2.76021971,3622.9,3622.1,2.76082935]
[1754037551320,4.88277794,3622.8,3621.9,26.927]
[1754037551522,4.88277794,3622.8,3621.6,30.0]
[1754037551523,0.55,3622.6,3621.6,30.0]
[1754037551724,2.76097686,3622.0,3621.6,10.774]
[1754037551925,4.862,3621.9,3621.5,30.0]
[1754037552113,4.862,3621.9,3621.2,30.0]
[1754037552421,1.892,3623.4,3622.7,2.76031252]
[1754037552620,2.76006758,3623.1,3622.3,1.9466]
[1754037552832,4.859,3623.3,3622.4,30.0]
[1754037553318,4.86,3623.2,3622.9,2.7601544]
[1754037553523,4.86,3623.2,3622.5,3.0]
[1754037553746,0.55,3622.8,3622.6,10.0]
[1754037553950,0.55,3622.8,3621.9,2.0]
[1754037554246,3.31030434,3622.8,3622.0,5.76085402]
[1754037554419,2.76068896,3622.3,3621.9,3.1384]
[1754037554742,0.1384,3622.0,3621.7,2.76112848]
[1754037554943,2.76052444,3622.6,3621.9,30.0]
[1754037555110,2.76075313,3622.2,3621.7,0.1384]
[1754037555312,4.855,3622.5,3621.8,3.0]
[1754037555646,0.17447184,3623.9,3623.8,5.75953419]